[Event "88th Tata Steel Masters 2026"]
[White "Aravindh,Chithambaram VR."]
[Black "Niemann,Hans Moke"]
[Site "Wijk aan Zee"]
[Round "4.2"]
[Annotator "TA"]
[Result "0-1"]
[Date "2026.01.20"]
[WhiteElo "2700"]
[BlackElo "2725"]
[PlyCount "110"]
[TimeControl "60"]

{[%evp 14,109,0,-7,-11,-12,0,8,19,18,26,0,0,-8,-15,-42,-42,-27,-39,-56,-32,-47,-35,-81,-72,-91,-64,-85,-70,-58,-19,-106,-121,-130,-115,-137,-137,-127,-135,-171,-183,-177,-185,-181,-181,-239,-205,-202,-124,-143,-115,-124,-127,-156,-177,-303,-281,-293,-298,-490,-504,-493,-461,-493,-493,-499,-471,-454,-469,-637,-646,-637,-530,-519,-519,-1944,-1886,-5422,-5400,-29971,-5098,-29969,-12149,-29978,-6193,-29981,-29982,-29982,-29983,-29983,-29984,-29985,-29986,-29986,-29974,-29973,-29974,-6207]} 1. Nf3 {[%emt 0:0:0]} Nf6 {[%emt 0:0:0]} 2. g3 {[%emt 0:0:0]} c5 {[%emt 0:0:0]} 3. Bg2 {[%emt 0:0:0]} Nc6 {[%emt 0:0:0]} 4. c4 {[%emt 0:0:0]} d5 {[%emt 0:5:16]} 5. cxd5 {[%emt 0:0:0]} Nxd5 {[%emt 0:0:0]} 6. Nc3 {[%emt 0:0:0]} Nc7 {[%emt 0:0:0]} 7. O-O {[%emt 0:0:0]} e5 {[%emt 0:0:0]} 8. a3 {[%emt 0:0:0][%cal Yb2b4]} Rb8 {[%emt 0:0:0] 8...Rb8 is better than 8...f6. A34: Symmetrical English: 2 Nc3, lines with ...d5.} 9. d3 {[%emt 0:0:21]} Be7 {[%emt 0:0:0]} 10. Nd2 {[%emt 0:0:39]} Bd7 {[%emt 0:0:0] The position is equal.} 11. Nc4 {[%emt 0:1:25]} f6 {[%emt 0:0:0]} 12. f4 {[%emt 0:4:13]} b5 {[%emt 0:0:0]} 13. Ne3 {[%emt 0:0:3]} O-O {[%emt 0:1:0]} 14. f5 $146 {[%emt 0:1:7]} ({Predecessor:} 14. Ned5 Nxd5 15. Nxd5 Bd6 16. a4 a6 17. axb5 axb5 18. Be3 Kh8 19. Rc1 Nd4 20. fxe5 fxe5 {0-1 Jumabayev,R (2606)-Volokitin,A (2639) Wch Rapid Berlin 2015 (9)} )Nd4 {[%emt 0:5:11]} 15. g4 {[%emt 0:1:24]} Kh8 {[%emt 0:5:40]} 16. Bd2 {[%emt 0:23:39]} Be8 {[%emt 0:4:20][%csl Yd4][%cal Yc5c4] Strong Square Black (d4)} 17. Ne4 {[%emt 0:1:7]} Bf7 {[%emt 0:1:59]} 18. Bc3 {[%emt 0:8:19]} (18. Rc1 $15 )b4 $17 {[%emt 0:9:24]} 19. axb4 {[%emt 0:4:14]} cxb4 {[%emt 0:0:41]} 20. Bd2 {[%emt 0:0:37][%cal Ye3c4]} Bb3 {[%emt 0:1:10]} 21. Qe1 {[%emt 0:0:39]} Ncb5 {[%emt 0:0:51]} 22. Rc1 {[%emt 0:11:32]} (22. Ra6 $1 $11 {keeps the balance.} )Bg8 {[%emt 0:2:14]} 23. Rd1 {[%emt 0:7:56][%cal Ye3c4]} a5 {[%emt 0:8:25]} 24. Kh1 {[%emt 0:3:32]} Nb3 {[%emt 0:3:31] Black is more active.} 25. Nc4 {[%emt 0:2:0]} Nxd2 {[%emt 0:1:35]} 26. Rxd2 {[%emt 0:0:56]} b3 {[%emt 0:10:18]} 27. Qg3 {[%emt 0:4:21] [#]} a4 $1 {[%emt 0:7:18]} 28. g5 {[%emt 0:0:53]} a3 {[%emt 0:1:51]} 29. e3 {[%emt 0:10:28]} (29. gxf6 {keeps fighting.} gxf6 30. Qg4 )fxg5 {[%emt 0:10:13]} 30. Nxe5 {[%emt 0:3:9]} Rb6 {[%emt 0:1:11] Inhibits Nc6.} 31. bxa3 {[%emt 0:2:53][%csl Yb3] Black has a strong passed pawn} Nxa3 {[%emt 0:0:45]} 32. Rb2 {[%emt 0:0:37]} Qe8 {[%emt 0:6:1]} 33. d4 {[%emt 0:7:18]} Nc4 {[%emt 0:1:9]} 34. Rbb1 {[%emt 0:0:34]} (34. Nxc4 $142 Bxc4 35. Rff2 )b2 $19 {[%emt 0:4:32]} 35. Rf2 {[%emt 0:1:6]} Qc8 {[%emt 0:7:50]} 36. Rc2 $2 {[%emt 0:3:20] [#]} (36. Nd3 )Nxe5 {[%emt 0:2:7]} 37. Rxc8 {[%emt 0:1:18]} Rxc8 {[%emt 0:0:34]} 38. Nc5 {[%emt 0:1:49]} Bxc5 {[%emt 0:2:32]} 39. Be4 {[%emt 0:5:26]} Nc4 {[%emt 0:5:25]} 40. dxc5 {[%emt 0:0:0]} Rxc5 {[%emt 0:0:0]} 41. Qf2 {[%emt 0:20:40] Prevents Nd2. White is weak on the dark squares} Nd6 {[%emt 0:22:45]} 42. Bc2 {[%emt 0:2:33]} Bd5+ {[%emt 0:1:33]} 43. Kg1 {[%emt 0:0:7]} Ne4 {[%emt 0:1:29]} 44. Qe2 {[%emt 0:0:39]} (44. Qg2 $142 Nc3 45. Qxg5 Nxb1 46. Qd8+ Bg8 47. Bxb1 )Nc3 {[%emt 0:9:58][%csl Yb1,Ye2]} 45. Qd3 {[%emt 0:4:12]} Nxb1 {[%emt 0:5:37]} 46. f6 {[%emt 0:0:0]} Rxc2 {[%emt 0:0:7]} 47. Qxd5 {[%emt 0:0:0]} gxf6 {[%emt 0:1:53]} 48. Qd8+ {[%emt 0:0:0]} Kg7 {[%emt 0:0:4]} 49. Qe7+ {[%emt 0:0:0]} Kg6 {[%emt 0:2:16]} 50. Qe8+ {[%emt 0:0:0]} Kf5 {[%emt 0:0:48]} 51. Qd7+ {[%emt 0:0:0]} Ke4 {[%emt 0:0:16]} 52. Qd4+ {[%emt 0:0:0]} Kf3 {[%emt 0:0:15]} 53. Qd1+ {[%emt 0:0:0]} Kxe3 {[%emt 0:0:58]} 54. Qxc2 {[%emt 0:0:0]} Nd2 {[%emt 0:0:26]} 55. Qc5+ {[%emt 0:0:0]} Ke2 {[%emt 0:0:22] Weighted Error Value: White=0.71/Black=0.10 (very precise)   Mistake:       	White=6     	---        Inaccurate:     	White=4     	Black=2      OK:         	White=5     	Black=6      Best:        	White=3     	Black=1      Strong:       	---       	Black=1} 0-1

[Event "88th Tata Steel Masters 2026"]
[White "Abdusattorov,Nodirbek"]
[Black "Nguyen,Thai Dai Van"]
[Site "Wijk aan Zee"]
[Round "4.3"]
[Annotator "TA"]
[Result "1-0"]
[Date "2026.01.20"]
[WhiteElo "2751"]
[BlackElo "2656"]
[PlyCount "79"]
[TimeControl "60"]

{[%evp 14,79,41,32,49,41,33,0,0,0,0,0,0,0,0,0,8,-19,0,-18,-16,-19,-22,-7,0,-2,0,-27,10,24,15,22,21,33,52,70,83,80,102,88,97,91,90,80,111,95,127,121,143,152,149,133,121,103,118,83,109,89,220,125,127,108,213,130,328,310,390,391]} 1. e4 {[%emt 0:0:0]} e5 {[%emt 0:0:0]} 2. Nf3 {[%emt 0:0:0]} Nf6 {[%emt 0:0:0]} 3. Nxe5 {[%emt 0:0:0]} d6 {[%emt 0:0:0]} 4. Nf3 {[%emt 0:0:0]} Nxe4 {[%emt 0:0:0]} 5. d4 {[%emt 0:0:0]} d5 {[%emt 0:0:0]} 6. Bd3 {[%emt 0:0:0]} Be7 {[%emt 0:0:0]} 7. O-O {[%emt 0:0:0]} O-O {[%emt 0:0:0]} 8. Re1 {[%emt 0:0:0]} Nc6 {[%emt 0:0:0] C42: Petroff Defence: 3 Nxe5 and unusual White 3rd moves.} 9. c4 {[%emt 0:0:0]} Nf6 {[%emt 0:0:0]} 10. c5 $5 {[%emt 0:7:49][%mdl 4] Leaves trodden paths.} Bg4 {[%emt 0:2:51] The position is equal.} 11. Be3 {[%emt 0:3:2]} Ne4 {[%emt 0:2:52]} 12. Be2 $146 {[%emt 0:11:10]} ({Predecessor:} 12. Nc3 f5 13. Rc1 Bf6 14. Nxd5 Bxd4 15. Qb3 Kh8 16. Nxd4 Nxd4 17. Bxd4 c6 18. Qxb7 Nf6 19. Bxf6 gxf6 20. Qxc6 {1-0 Moreno Perez,N (1851)-Codina Blasco,J (1722) Barcelona Sant Marti op-B 19th 2017 (3)} )Bf6 {[%emt 0:28:24]} 13. h3 {[%emt 0:6:13]} Bxf3 {[%emt 0:11:38]} 14. Bxf3 {[%emt 0:0:40]} b6 {[%emt 0:1:19]} 15. Nd2 {[%emt 0:8:56]} Re8 {[%emt 0:5:50]} 16. Nb3 {[%emt 0:4:34]} a5 {[%emt 0:8:18]} 17. Rc1 {[%emt 0:4:12] [#]} b5 {[%emt 0:10:25]} 18. Na1 {[%emt 0:10:34]} Ne7 {[%emt 0:8:12]} 19. Nc2 {[%emt 0:6:19]} Nf5 {[%emt 0:5:28]} 20. Qd3 {[%emt 0:0:53]} c6 {[%emt 0:10:36]} 21. Bf4 {[%emt 0:1:19][%cal Rf3e4]} g6 {[%emt 0:0:43]} 22. Bxe4 {[%emt 0:5:33]} dxe4 {[%emt 0:0:32]} 23. Rxe4 {[%emt 0:0:31]} Qd5 {[%emt 0:0:45]} 24. Rce1 {[%emt 0:1:34]} Rxe4 {[%emt 0:1:44]} 25. Qxe4 {[%emt 0:1:56]} Qd7 {[%emt 0:5:10][%cal Rf5d4]} 26. Be5 {[%emt 0:9:57]} Re8 {[%emt 0:1:2]} 27. Qf4 {[%emt 0:2:2]} Bxe5 {[%emt 0:1:48]} 28. Rxe5 {[%emt 0:2:24]} Rd8 {[%emt 0:0:31]} 29. Re4 {[%emt 0:1:42]} h5 {[%emt 0:1:42]} 30. b3 {[%emt 0:3:55]} Re8 {[%emt 0:2:11]} 31. Rxe8+ {[%emt 0:1:17]} Qxe8 {[%emt 0:0:31]} 32. Ne3 {[%emt 0:0:38]} Nxe3 {[%emt 0:0:53]} 33. fxe3 $16 {[%emt 0:1:38][%mdl 4096] Endgame KQ-KQ. White is a pawn up.} a4 {[%emt 0:0:31]} 34. e4 {[%emt 0:5:52] [#] And now d5 would win. White is more active.} Qe6 {[%emt 0:1:49]} 35. Qf3 {[%emt 0:1:28]} a3 {[%emt 0:1:7]} (35... Kf8 $16 )36. Kf2 {[%emt 0:1:23]} (36. Kh2 $18 )Qe7 {[%emt 0:0:53]} 37. Qe3 {[%emt 0:2:20]} Qh4+ {[%emt 0:0:51]} (37... Qf6+ $16 38. Kg1 h4 )38. Ke2 $18 {[%emt 0:0:44]} Qd8 {[%emt 0:0:44]} (38... Qf6 $16 {was worth a try.} 39. e5 Qf5 )39. Kd3 {[%emt 0:1:3]} Qd7 {[%emt 0:0:34]} 40. Kc3 {[%emt 0:0:0] Weighted Error Value: White=0.10 (very precise) /Black=0.24 (precise)   Loses game:     	---       	Black=1      Mistake:       	White=1     	Black=2      Inaccurate:     	White=4     	Black=4      OK:         	White=7     	Black=6      Best:        	---       	Black=1} 1-0

[Event "88th Tata Steel Masters 2026"]
[White "Gukesh D"]
[Black "Praggnanandhaa R"]
[Site "Wijk aan Zee"]
[Round "4.4"]
[Annotator "TA"]
[Result "1/2-1/2"]
[Date "2026.01.20"]
[WhiteElo "2754"]
[BlackElo "2758"]
[PlyCount "80"]
[TimeControl "60"]

{[%evp 10,80,16,16,18,0,0,0,14,16,11,-18,-8,-20,0,0,6,-26,0,0,0,-22,22,12,14,14,12,13,12,13,12,25,23,20,27,22,21,26,18,0,0,0,24,0,0,0,0,0,0,0,0,0,0,0,0,0,0,0,0,0,0,0,0,0,0,0,0,0,0,0,0,0,0]} 1. e4 {[%emt 0:0:0]} e6 {[%emt 0:0:0]} 2. d3 {[%emt 0:0:0]} d5 {[%emt 0:0:0]} 3. Qe2 {[%emt 0:0:0]} dxe4 {[%emt 0:0:0]} 4. dxe4 {[%emt 0:0:0]} e5 {[%emt 0:0:0]} 5. Nf3 {[%emt 0:0:0]} Nc6 {[%emt 0:0:0]} 6. c3 {[%emt 0:0:0]} a5 {[%emt 0:0:0] C00: French: Unusual White 2nd moves.} 7. Qc2 {[%emt 0:0:0]} Bc5 {[%emt 0:0:0]} 8. Be2 {[%emt 0:7:41]} Nge7 {[%emt 0:8:50]} 9. O-O $146 {[%emt 0:3:54]} ({Predecessor:} 9. Be3 Bxe3 10. fxe3 O-O 11. Nbd2 Kh8 12. Bc4 Qe8 13. O-O f5 14. exf5 Nxf5 15. Ng5 {1-0 Lobzhanidze,D (2485)-Kiesel,H (2185) Dresden ZMD op 2002 (7)} )Ng6 {[%emt 0:0:38]} 10. Na3 {[%emt 0:7:51]} Bxa3 {[%emt 0:11:3]} 11. bxa3 {[%emt 0:0:50]} h6 {[%emt 0:2:28]} 12. g3 {[%emt 0:8:22]} O-O {[%emt 0:5:4]} 13. Nd2 {[%emt 0:1:44][%cal Yf3d2,Yd2c4,Yc4e3,Ye3f5][%mdl 32]} b6 {[%emt 0:10:9]} 14. a4 {[%emt 0:13:10]} Qf6 {[%emt 0:1:33]} 15. Rd1 {[%emt 0:1:30]} Ba6 {[%emt 0:3:35]} 16. Nc4 {[%emt 0:3:43]} Rfd8 {[%emt 0:5:49]} 17. Ba3 {[%emt 0:1:6]} Rxd1+ {[%emt 0:15:25]} 18. Rxd1 {[%emt 0:0:41]} Rd8 {[%emt 0:0:34]} 19. Ne3 {[%emt 0:3:26]} Rxd1+ {[%emt 0:3:6]} 20. Qxd1 {[%emt 0:9:17]} Bxe2 {[%emt 0:0:36]} 21. Qxe2 {[%emt 0:0:32]} Qd8 {[%emt 0:12:6]} 22. Qb5 {[%emt 0:12:27]} Na7 {[%emt 0:2:20]} 23. Qd5 {[%emt 0:7:1]} Qe8 {[%emt 0:0:39]} 24. Nf5 {[%emt 0:4:34]} Nc8 {[%emt 0:3:49]} 25. h4 {[%emt 0:3:20]} c5 {[%emt 0:4:25]} 26. c4 {[%emt 0:6:57]} Nce7 {[%emt 0:5:58] The position is equal.} 27. Nxe7+ {[%emt 0:5:5]} Qxe7 $11 {[%emt 0:1:41][%mdl 4096] Endgame KQB-KQN} 28. Bb2 {[%emt 0:1:29]} (28. h5 $5 Nf8 $8 29. Bb2 $11 )h5 {[%emt 0:1:4]} 29. Qd1 {[%emt 0:5:47]} Qe6 {[%emt 0:2:50]} 30. Qxh5 {[%emt 0:0:46]} Qxc4 {[%emt 0:0:36]} 31. Qf5 {[%emt 0:0:32]} Qxa2 {[%emt 0:2:24]} 32. h5 {[%emt 0:0:53]} Qxb2 {[%emt 0:4:8]} 33. hxg6 {[%emt 0:0:35][%cal Rf5c8] [#] KQ-KQ. Black is a pawn up.} Qc1+ {[%emt 0:1:56]} 34. Kg2 {[%emt 0:0:31][%cal Rf5c8]} fxg6 {[%emt 0:0:34]} 35. Qxg6 {[%emt 0:0:48]} c4 {[%emt 0:0:53]} 36. Qe6+ {[%emt 0:0:48]} Kh7 {[%emt 0:0:38]} 37. Qf5+ {[%emt 0:0:57]} (37. Qxb6 Qc2 38. Qxa5 Qxe4+ 39. Kf1 Qd4 )Kg8 {[%emt 0:0:45]} 38. Qe6+ {[%emt 0:1:12]} Kh7 {[%emt 0:0:33]} 39. Qf5+ {[%emt 0:0:34]} (39. Qxb6 Qc2 40. Qxa5 Qxe4+ 41. Kf1 Qd4 )Kg8 {[%emt 0:0:33]} 40. Qe6+ {[%emt 0:0:0]} Kh7 {[%emt 0:0:0] An interesting draw.   Weighted Error Value: White=0.05 (flawless) /Black=0.04 (flawless)   Inaccurate:     	White=2     	Black=2      OK:         	White=9     	Black=7      Best:        	---       	Black=1} 1/2-1/2

[Event "88th Tata Steel Masters 2026"]
[White "Giri,Anish"]
[Black "Erigaisi Arjun"]
[Site "Wijk aan Zee"]
[Round "4.5"]
[Annotator "TA"]
[Result "1/2-1/2"]
[Date "2026.01.20"]
[WhiteElo "2760"]
[BlackElo "2775"]
[PlyCount "159"]
[TimeControl "60"]

{[%evp 9,159,-16,12,2,24,26,17,21,22,12,27,12,12,10,10,10,13,8,15,17,18,8,4,6,3,0,0,0,0,0,0,-23,-21,-36,-25,-31,-23,-66,-70,-68,-83,-80,-107,-106,-95,-102,-39,-98,-102,-90,-81,-143,-140,-129,-133,-125,-140,-148,-123,-117,-114,-112,-112,-116,-72,-66,-79,-90,-80,-80,-77,-93,-62,-52,-59,-62,0,-27,-27,-27,-27,-27,-27,-27,-27,-28,-28,-41,-40,-50,-20,-37,-20,-71,-71,-71,-63,-71,-64,-71,-18,-27,-24,-18,-19,-71,-19,-27,-27,-27,-27,-27,-30,-71,-66,-66,-66,-71,-60,-71,-47,-71,-71,-71,-71,-71,-71,-71,0,-71,-59,-71,-71,-71,-71,-72,-39,-48,-27,-27,0,0,0,0,0,0,0,0,0,0,0,0]} 1. d4 {[%emt 0:0:0]} d5 {[%emt 0:0:0]} 2. c4 {[%emt 0:0:0]} e6 {[%emt 0:0:0]} 3. Nc3 {[%emt 0:0:0]} Be7 {[%emt 0:0:0]} 4. Nf3 {[%emt 0:0:0]} Nf6 {[%emt 0:0:0]} 5. g3 {[%emt 0:0:0]} Nbd7 {[%emt 0:0:0]} 6. Bg2 {[%emt 0:0:0] E01: Catalan: Early deviations.} dxc4 {[%emt 0:0:0]} 7. Nd2 {[%emt 0:0:0]} Nb6 {[%emt 0:0:0]} 8. Nxc4 {[%emt 0:0:0]} c5 {[%emt 0:0:0]} 9. Nxb6 {[%emt 0:0:0]} axb6 {[%emt 0:0:0]} 10. dxc5 $146 {[%emt 0:8:38]} ({Predecessor:} 10. e3 O-O 11. O-O Qd7 12. Qb3 cxd4 13. exd4 Qxd4 14. Be3 Qb4 15. Qxb4 Bxb4 16. Bxb6 Bxc3 17. bxc3 {½-½ Lauer,R (1363)-Birzer,L (1425) DESC E0324 email 1999} )Qxd1+ {[%emt 0:0:0]} 11. Kxd1 {[%emt 0:0:36]} Bxc5 {[%emt 0:0:0][%cal Ye8g8]} 12. e3 {[%emt 0:3:34]} e5 {[%emt 0:0:0]} 13. Ke2 {[%emt 0:1:45]} Ke7 {[%emt 0:0:0]} 14. Bd2 {[%emt 0:6:9]} Rd8 {[%emt 0:1:21]} 15. Rhd1 {[%emt 0:6:30]} Bg4+ {[%emt 0:1:26]} 16. Bf3 {[%emt 0:0:56]} h5 {[%emt 0:0:59] A sharp opening} 17. h4 {[%emt 0:8:8]} Bb4 {[%emt 0:8:4]} 18. Bxg4 {[%emt 0:9:42]} hxg4 {[%emt 0:0:39]} 19. Nb1 {[%emt 0:0:41]} Bxd2 {[%emt 0:2:16]} 20. Nxd2 {[%emt 0:4:27]} Rdc8 {[%emt 0:1:40]} 21. Rdb1 {[%emt 0:13:21]} Ke6 {[%emt 0:7:37]} 22. a4 {[%emt 0:7:1]} Rc2 {[%emt 0:33:4]} 23. Kd3 {[%emt 0:5:50] Repels Ne4} Rac8 {[%emt 0:12:8]} 24. e4 {[%emt 0:3:4] Against Nd5} R2c6 {[%emt 0:1:28]} 25. Ke3 {[%emt 0:5:19]} Rd6 {[%emt 0:1:36]} 26. Rc1 {[%emt 0:0:54]} Rcd8 {[%emt 0:0:37]} 27. Rc2 {[%emt 0:0:39]} Rd3+ {[%emt 0:0:46]} 28. Ke2 {[%emt 0:0:32]} R3d4 {[%emt 0:0:38]} 29. Ke3 {[%emt 0:0:58]} Rb4 {[%emt 0:1:18]} 30. b3 {[%emt 0:3:12]} (30. Ra3 $142 )Rdd4 $17 {[%emt 0:2:18]} 31. Rc4 {[%emt 0:1:48]} Rxb3+ {[%emt 0:1:17]} 32. Nxb3 {[%emt 0:0:34]} Rxc4 {[%emt 0:0:36][%mdl 4096] Endgame KRN-KRN. Black is a pawn up.} 33. Nd2 {[%emt 0:0:51]} Rb4 {[%emt 0:6:26]} 34. a5 {[%emt 0:2:0]} bxa5 {[%emt 0:1:55]} 35. Rxa5 {[%emt 0:0:31]} g6 {[%emt 0:10:28]} 36. Ra8 {[%emt 0:1:4] Repels Ne8} b5 {[%emt 0:2:5]} 37. Ra6+ {[%emt 0:3:24]} Ke7 {[%emt 0:0:35]} 38. Ra7+ {[%emt 0:1:38]} Nd7 {[%emt 0:0:42]} 39. f3 {[%emt 0:2:48]} gxf3 {[%emt 0:9:6]} 40. Nxf3 {[%emt 0:0:0]} f6 {[%emt 0:0:0]} 41. g4 {[%emt 0:24:43]} Kd6 {[%emt 0:25:11]} 42. Ra6+ {[%emt 0:6:31]} Ke7 {[%emt 0:2:54]} 43. Ra7 {[%emt 0:1:48]} Ra4 {[%emt 0:5:41]} 44. Rb7 {[%emt 0:0:53]} Ra5 {[%emt 0:0:22]} 45. h5 {[%emt 0:9:0]} g5 {[%emt 0:3:58]} 46. h6 {[%emt 0:1:34]} Ra8 {[%emt 0:0:38] Against Rb8} 47. Ng1 {[%emt 0:7:28]} Rh8 {[%emt 0:1:23]} 48. Ne2 {[%emt 0:0:4]} Rxh6 {[%emt 0:1:50]} 49. Ng3 {[%emt 0:1:58]} Rh2 {[%emt 0:1:6]} 50. Rxb5 {[%emt 0:1:44]} Rc2 {[%emt 0:0:47]} 51. Rb3 {[%emt 0:5:9]} (51. Nf5+ $11 Kd8 52. Ra5 )Nc5 {[%emt 0:1:51]} 52. Ra3 {[%emt 0:0:6]} Rc4 {[%emt 0:0:52]} 53. Kf3 {[%emt 0:0:24]} Ke6 {[%emt 0:1:14]} 54. Ra7 {[%emt 0:0:58]} Rc3+ {[%emt 0:0:47]} (54... Ra4 $17 55. Rxa4 Nxa4 )55. Kg2 {[%emt 0:0:14]} Re3 {[%emt 0:5:21]} 56. Kf2 {[%emt 0:0:10]} Rb3 {[%emt 0:0:5]} 57. Kg2 {[%emt 0:0:15]} (57. Rc7 $11 Rc3 58. Ra7 )Rc3 {[%emt 0:0:20]} ({Black should try} 57... Rb7 $17 58. Rxb7 Nxb7 )58. Rh7 {[%emt 0:0:49]} Rc4 {[%emt 0:0:45]} 59. Kf3 {[%emt 0:2:28]} Nb3 {[%emt 0:0:18]} 60. Ke2 {[%emt 0:3:46] Prevents Nd2} Ra4 {[%emt 0:3:57]} 61. Rb7 {[%emt 0:16:17]} Ra2+ {[%emt 0:17:9]} 62. Ke3 {[%emt 0:0:39]} Ra3 {[%emt 0:0:25]} 63. Kf2 {[%emt 0:0:46] [#] Threatening mate with Nf5.} Nd2 {[%emt 0:0:26]} 64. Rb6+ {[%emt 0:0:55]} Kf7 {[%emt 0:1:46]} 65. Rb7+ {[%emt 0:0:27]} Ke8 {[%emt 0:0:29]} 66. Rb2 {[%emt 0:0:13]} Rd3 {[%emt 0:0:21]} 67. Ra2 {[%emt 0:1:28]} Kd7 {[%emt 0:0:26]} 68. Rc2 {[%emt 0:0:20]} Ke8 {[%emt 0:1:14]} (68... Rd4 $17 69. Ke3 Nb3 )69. Rc8+ {[%emt 0:0:42]} (69. Ra2 $11 {keeps the balance.} )Ke7 {[%emt 0:0:18]} 70. Rc2 {[%emt 0:0:39] [#] Threatens to win with Nf5+.} (70. Nf5+ Kd7 71. Rf8 (71. Ke2 $2 Ra3 $19 )Nxe4+ 72. Kg2 Ke6 73. Re8+ Kd7 $17 )Kd7 {[%emt 0:0:8]} 71. Kg2 {[%emt 0:0:50]} Nf3 {[%emt 0:3:55]} 72. Ra2 {[%emt 0:0:16]} Nh4+ {[%emt 0:2:23]} 73. Kh2 {[%emt 0:0:2]} Rd6 {[%emt 0:0:36]} 74. Nh5 {[%emt 0:0:33]} Nf3+ {[%emt 0:0:35]} 75. Kg2 {[%emt 0:0:47] The position is equal.} Nd2 {[%emt 0:0:8]} 76. Nxf6+ {[%emt 0:0:41]} Rxf6 {[%emt 0:0:33]} 77. Rxd2+ {[%emt 0:0:2]} Ke6 {[%emt 0:0:7]} 78. Ra2 {[%emt 0:1:36]} Rf4 {[%emt 0:0:6][%csl Ye4,Yg4]} 79. Ra6+ {[%emt 0:0:3]} Ke7 {[%emt 0:0:10]} 80. Kg3 {[%emt 0:0:14] Weighted Error Value: White=0.08 (flawless) /Black=0.08 (flawless)   Mistake:       	White=4     	Black=3      Inaccurate:     	White=2     	Black=6      OK:         	White=6     	Black=7} 1/2-1/2

[Event "88th Tata Steel Masters 2026"]
[White "Erdogmus,Yagiz Kaan"]
[Black "Keymer,Vincent"]
[Site "Wijk aan Zee"]
[Round "4.6"]
[Annotator "TA"]
[Result "1/2-1/2"]
[Date "2026.01.20"]
[WhiteElo "2658"]
[BlackElo "2776"]
[PlyCount "91"]
[TimeControl "60"]

{[%evp 16,91,16,18,14,12,4,17,23,4,8,11,23,25,20,23,23,0,20,20,24,31,27,10,29,26,33,26,28,27,26,26,25,17,24,29,36,22,29,20,25,8,11,5,16,0,0,0,19,0,0,0,0,0,0,0,0,0,0,0,0,0,0,0,0,0,0,0,0,0,0,0,0,0,0,0,0,0]} 1. e4 {[%emt 0:0:0]} e5 {[%emt 0:0:0]} 2. Nf3 {[%emt 0:0:0]} Nc6 {[%emt 0:0:0]} 3. Bb5 {[%emt 0:0:0]} Nf6 {[%emt 0:0:0]} 4. O-O {[%emt 0:0:0][%cal Yh1f1,Yf1e1,Ye1e5][%mdl 32]} Nxe4 {[%emt 0:0:0]} 5. Re1 {[%emt 0:0:0]} Nd6 {[%emt 0:0:0]} 6. Nxe5 {[%emt 0:0:0]} Be7 {[%emt 0:0:0]} 7. Bf1 {[%emt 0:0:0]} Nxe5 {[%emt 0:0:0]} 8. Rxe5 {[%emt 0:0:0]} O-O {[%emt 0:0:0]} 9. d4 {[%emt 0:0:0]} Ne8 {[%emt 0:0:0] C67: Ruy Lopez: Berlin Defence: 4 0-0 Nxe4.} 10. d5 {[%emt 0:17:27] Black is weak on the light squares} Bc5 {[%emt 0:0:0] 10...d6 is vanishing.} 11. Re1 {[%emt 0:7:14]} d6 {[%emt 0:0:0]} 12. Nc3 {[%emt 0:3:18]} Bf5 {[%emt 0:0:0]} 13. Bd3 {[%emt 0:6:44]} Qf6 {[%emt 0:0:0]} 14. Be3 {[%emt 0:5:7]} Qg6 {[%emt 0:0:0]} 15. Bxf5 {[%emt 0:5:52]} Qxf5 {[%emt 0:0:0]} 16. h3 {[%emt 0:2:34]} Nf6 $146 {[%emt 0:35:42]} ({Predecessor:} 16... h6 17. Bxc5 dxc5 18. Ne4 Nf6 19. Qd3 Nxd5 20. Nxc5 Qxd3 21. Nxd3 Rfd8 22. Kf1 Kf8 {½-½ Bozic,D (1816)-Nazrulla,S W-ch WS/O/1374 email 2021} )17. Bxc5 {[%emt 0:9:22]} dxc5 {[%emt 0:0:0]} 18. Re7 {[%emt 0:2:40]} Qf4 {[%emt 0:14:2]} 19. d6 {[%emt 0:19:25]} Qxd6 {[%emt 0:15:20]} 20. Qxd6 {[%emt 0:0:50]} cxd6 {[%emt 0:0:31]} 21. Rxb7 {[%emt 0:5:4]} Rfb8 {[%emt 0:0:47]} 22. Rxb8+ {[%emt 0:3:2]} Rxb8 $11 {[%emt 0:0:32][%mdl 4096] Endgame KRN-KRN} 23. b3 {[%emt 0:0:35]} Kf8 {[%emt 0:1:37]} 24. Rd1 {[%emt 0:5:45]} Ke7 {[%emt 0:1:16]} 25. g4 {[%emt 0:0:37]} g5 {[%emt 0:6:16]} 26. f4 {[%emt 0:3:33]} h6 {[%emt 0:6:45]} 27. Re1+ {[%emt 0:1:52]} Kd7 {[%emt 0:0:55]} 28. fxg5 {[%emt 0:0:38]} hxg5 {[%emt 0:0:32] The position is equal.} 29. Rf1 {[%emt 0:0:35]} Ke6 {[%emt 0:1:19]} 30. Re1+ {[%emt 0:0:33]} Kd7 {[%emt 0:0:33]} 31. Rf1 {[%emt 0:0:32]} Ke6 {[%emt 0:0:35]} 32. Rf5 {[%emt 0:1:18]} Rb4 {[%emt 0:10:59]} 33. Kf2 {[%emt 0:5:4]} Rd4 {[%emt 0:0:41]} 34. Ke3 {[%emt 0:1:12] Wards off Rd2} Nd5+ $1 {[%emt 0:1:55]} 35. Nxd5 {[%emt 0:0:39]} Rxd5 {[%emt 0:0:31]} 36. Rxd5 {[%emt 0:2:2]} Kxd5 {[%emt 0:0:32] KP-KP} 37. c3 {[%emt 0:1:3]} Kc6 {[%emt 0:2:55]} 38. a3 {[%emt 0:2:16]} (38. Ke4 $5 d5+ $8 39. Kd3 $11 (39. Kf5 f6 $19 ))d5 {[%emt 0:1:39]} 39. Kd3 {[%emt 0:1:59]} Kb5 {[%emt 0:1:27]} 40. Kc2 {[%emt 0:0:0]} a5 {[%emt 0:0:0]} (40... c4 $5 41. b4 $8 Ka4 $11 )41. Kd3 {[%emt 0:32:1]} Kb6 {[%emt 0:38:18]} 42. Kd2 {[%emt 0:3:30]} Kc6 {[%emt 0:0:25]} 43. Ke3 {[%emt 0:2:10]} Kb5 {[%emt 0:4:32]} 44. Kd3 {[%emt 0:0:29]} Kb6 {[%emt 0:5:29]} 45. Kd2 {[%emt 0:0:55]} Kb5 {[%emt 0:0:16]} 46. Kd3 {Not much happened in this game.   Weighted Error Value: White=0.04 (flawless) /Black=0.03 (flawless)   OK:         	White=9     	Black=7      Best:        	White=1     	Black=2      Strong:       	---       	Black=1} 1/2-1/2